Cogmind - Beta 15 @@@ ROGUE MODE // 2025.05.22 @ 18:19:01 Player: jumpy Result: Destroyed by Y-45 Defender with Beam Rifle Performance ------------- Evolutions (2) 1000 Regions Visited (3) 600 Robots Destroyed (52) 260 Value Destroyed (1548) 1548 Prototype IDs (0) 0 Alien Tech Used (0) 0 Bonus (0) 0 TOTAL SCORE: 3408 Bonus ------- None Cogmind --------- Core Integrity 0/550 Matter 207/300 Energy 160/160 System Corruption 0% Temperature Cool (9) Movement Core (450) Ox8 Location -8/Materials Parts ------- > --- POWER (1) -------- Light Nuclear Core > --- PROPULSION (4) --- (None) > --- UTILITY (4) ------ Large Storage Unit > --- WEAPON (2) ------- (None) > --- INVENTORY (15) --- Ion Engine Improved Ion Engine Improved Heat Sink Weapon Cycler Layered Light Armor Plating High-powered Tractor Beam Field Laser EM Pulse Cannon Grenade Launcher Heavy Mace Peak State ------------ > --- POWER ------------ Light Nuclear Core > --- PROPULSION ------- Light Treads Spiked Treads > --- UTILITY ---------- Large Storage Unit Improved Terrain Scanner Seismic Detector Layered Light Armor Plating > --- WEAPON ----------- Gauss Rifle Gauss Rifle > --- INVENTORY -------- Ion Engine Improved Ion Engine Wheel Improved Heat Sink Weapon Cycler Layered Light Armor Plating High-powered Tractor Beam Field Laser Field Laser Pulse Rifle EM Pulse Cannon EM Pulse Cannon Gauss Rifle Grenade Launcher Heavy Mace [Rating: 27] Favorites ----------- Power Light Nuclear Core Engine Ion Engine Power Core Light Nuclear Core Propulsion Light Treads Treads Light Treads Leg Aluminum Leg Wheel Compact Wheel Utility Seismic Detector Device Seismic Detector Storage Large Storage Unit Processor Improved Targeting Computer Protection Layered Light Armor Plating Weapon Gauss Rifle Energy Gun Small Laser Ballistic Gun Gauss Rifle Launcher Grenade Launcher Build | -11 -10 -10 -8 ------- Run | Yrd Mat Sub Mat Slots Evolved 4 | . . . 4 Power . | . . . . Propulsion 2 | . . . 2 Utility 2 | . . . 2 Weapon . | . . . . Parts Attached 34 | 7 4 4 19 Power 6 | 1 1 . 4 Engine 2 | 1 . . 1 Core 4 | . 1 . 3 Reactor . | . . . . Propulsion 10 | 2 . 2 6 Treads 4 | 2 . 2 . Leg 4 | . . . 4 Wheel 2 | . . . 2 Hover . | . . . . Flight . | . . . . Utility 7 | 2 2 . 3 Device 2 | 1 . . 1 Storage 3 | 1 2 . . Processor 1 | . . . 1 Hackware . | . . . . Protection 1 | . . . 1 Artifact . | . . . . Weapon 11 | 2 1 2 6 Energy Gun 4 | 1 1 . 2 Energy Cannon . | . . . . Ballistic Gun 6 | 1 . 1 4 Ballistic Cannon . | . . . . Launcher 1 | . . 1 . Special Weapon . | . . . . Impact Weapon . | . . . . Slashing Weapon . | . . . . Piercing Weapon . | . . . . Special Melee Weapon . | . . . . Unidentified Prototypes . | . . . . Parts Lost 20 | . . 3 17 Power 2 | . . . 2 Propulsion 6 | . . 1 5 Utility 4 | . . . 4 Weapon 8 | . . 2 6 Highest Loss Streak 9 | . . 2 9 To Critical Strikes . | . . . . Average Backups 9 | 3 8 8 13 Power 1 | . 1 1 1 Propulsion 1 | 1 2 2 . Utility 2 | . 2 2 4 Weapon 4 | . 2 3 6 Tool/Special . | . . . . Unused Backups 13 | . 1 . 12 Power 1 | . . . 1 Propulsion 1 | . 1 . . Utility 5 | . . . 5 Weapon 6 | . . . 6 Tool/Special . | . . . . Average Slot Usage (%) 85 | . 100 92 70 Engine 1 | . 5 . . Core 9 | . 8 14 8 Treads 21 | . 28 25 14 Device 13 | . 14 14 12 Storage 11 | . 14 14 9 Protection 2 | . . . 6 Energy Gun 7 | . 14 9 1 Ballistic Gun 12 | . 14 7 14 Launcher 1 | . . 6 . Peak Build Rating 27 | 7 11 12 27 Average Rating 14 | 5 9 10 22 On Entrance 7 | . 7 11 10 Naked Turns . | . . . . Heaviest Build 39 | 13 30 32 39 Greatest Support 40 | 40 40 40 40 Greatest Overweight (x) 8 | . . 1 8 Average Overweight (x) . | . . . . Largest Inventory Capacity 15 | 8 15 15 15 Average Capacity 12 | 7 10 15 15 Most Carried 15 | 7 10 10 15 Average Carried 9 | 3 8 8 13 Final Capacity 15 | 8 15 15 15 Final Carried 10 | 7 9 8 10 Class Distribution -------------------- 100% | Mutant Dominant Class ---------------- Mutant | -10/Materials Mutant | -10/Subcaves Mutant | -8/Materials Resources | -11 -10 -10 -8 ----------- Run | Yrd Mat Sub Mat Matter Collected 958 | 293 68 67 530 Remotely . | . . . . Salvage Created 1896 | 157 308 106 1325 Parts 109 | 13 24 8 64 Haulers Intercepted 2 | . 1 . 1 Recyclers Shooed 1 | . 1 . . Parts Field Recycled . | . . . . Retrieved Matter . | . . . . Parts Self-Destructed 2 | . . 2 . Prevented . | . . . . Kills | -11 -10 -10 -8 ------- Run | Yrd Mat Sub Mat Combat Hostiles Destroyed 38 | . 9 6 23 Guns 29 | . 9 2 18 AOE 9 | . . 4 5 Classes Destroyed 10 | 3 3 1 3 Worker 3 | 2 . . 1 Builder 2 | . . . 2 Tunneler 3 | 3 . . . Hauler 2 | . 1 . 1 Recycler 4 | 1 . . 3 Swarmer 6 | . 3 . 3 Grunt 23 | . 6 . 17 Sentry 2 | . . . 2 Heavy 1 | . . . 1 Subdweller 6 | . . 6 . Best Kill Streak 7 | 2 5 4 7 Combat Bots Only 6 | . 5 4 6 Max Kills in Single Turn 3 | 1 2 2 3 Gunslinging 1 | . 1 . . Exploded 3 | . . 2 3 Melee . | . . . . Uniques/NPCs Destroyed . | . . . . Combat | -11 -10 -10 -8 -------- Run | Yrd Mat Sub Mat Hostile Shots Fired 251 | . 58 18 175 Missed 54 | . 11 3 40 Hits 197 | . 47 15 135 Projectile 197 | . 47 15 135 Critical Strikes 4 | . 1 . 3 Damage Taken 3241 | . 552 297 2392 Core 782 | . 151 75 556 Absorbed by Shields . | . . . . Core Remaining (%) 54 | 100 . 9 . Volleys Fired 147 | 23 35 15 74 Largest 2 | 2 2 2 2 Hottest 126 | 60 60 95 126 Shots Fired 280 | 46 68 27 139 Gun 269 | 46 68 21 134 Cannon . | . . . . Launcher 11 | . . 6 5 Special . | . . . . Kinetic 175 | 23 35 8 109 Thermal 94 | 23 33 13 25 Explosive 11 | . . 6 5 Electromagnetic . | . . . . Robot Hit Streak 20 | 8 20 16 18 Robot Miss Streak 6 | 6 4 2 6 Penetration Max 1 | . . . 1 Secondary Targets 4 | . 1 . 3 Max Gunslinging Chain 1 | . 1 . 1 Shots Hit Robots 179 | 25 46 17 91 Core Hits 103 | 9 20 13 61 Critical Kills 1 | . . . 1 Critical Parts Destroyed 2 | . . . 2 Critical Strikes 7 | . . 1 6 Burn 4 | . . 1 3 Destroy 3 | . . . 3 Melee Attacks . | . . . . Impact . | . . . . Slashing . | . . . . Piercing . | . . . . Sneak Attacks . | . . . . Combat Hostiles . | . . . . Follow-up Attacks . | . . . . Damage Inflicted 3821 | 261 439 577 2544 Guns 2887 | 261 435 172 2019 Cannons . | . . . . Explosions 917 | . . 395 522 Melee . | . . . . Ramming 17 | . 4 10 3 Kinetic 2000 | 102 182 33 1683 Thermal 887 | 159 253 139 336 Explosive 917 | . . 395 522 Electromagnetic . | . . . . Impact . | . . . . Slashing . | . . . . Piercing . | . . . . Highest Corruption . | . . . . Average Corruption . | . . . . Corruption Purged . | . . . . Corruption Blocked . | . . . . Overload Shots . | . . . . Overflow Damage . | . . . . Projectiles . | . . . . Explosions . | . . . . Melee . | . . . . Knockbacks 1 | . . 1 . Impact 1 | . . 1 . Kinetic . | . . . . Secondary . | . . . . Self-Inflicted Damage . | . . . . Shots . | . . . . Rammed 5 | . 2 2 1 Targets Rammed 5 | . 2 2 1 Kicked . | . . . . Crushed . | . . . . Highest Temperature 458 | 40 172 16 458 Average Temperature 74 | 16 58 8 105 Received Heat Transfer 1221 | . 213 36 972 Effects 2 | . . . 2 Shutdowns 2 | . . . 2 Siege Activations . | . . . . Martial Activations . | . . . . Shielding Activations . | . . . . Robots Disrupted . | . . . . Combat Hostiles . | . . . . Robots Corrupted . | . . . . Combat Hostiles . | . . . . Parts Fried . | . . . . Impact Corruptions . | . . . . Robots Melted . | . . . . Combat Hostiles . | . . . . Parts Melted 7 | . 1 2 4 Heat Transferred 2294 | 350 575 407 962 Parts Sabotaged . | . . . . Parts Stolen . | . . . . Parts Stripped . | . . . . Power Chain Reactions . | . . . . Alert | -11 -10 -10 -8 ------- Run | Yrd Mat Sub Mat Maximum Alert Level 1 | . . . 1 Low Security (%) 92 | 100 100 . 84 Level 1 7 | . . . 15 Level 2 . | . . . . Level 3 . | . . . . Level 4 . | . . . . Level 5 . | . . . . High Security . | . . . . Max Security . | . . . . Peak Influence 310 | 10 124 . 310 Initial . | . . . . Average 65 | 1 49 . 97 Influence Increases 943 | 30 243 . 670 Destroy 0b10 Robot/C 640 | . 180 . 460 Destroy 0b10 Robot/NC 70 | 30 5 . 35 Destroy Leader 134 | . 42 . 92 Successful Hack 21 | . 16 . 5 Destroy Structure 18 | . . . 18 Lose Combat Pursuer 60 | . . . 60 Influence Decreases 671 | 30 231 12 398 Entered New Map 7 | . . 7 . Time Decay 494 | 30 231 5 228 Lost Part 170 | . . . 170 Squads Dispatched 5 | . 2 . 3 Investigation 2 | . 1 . 1 Extermination . | . . . . Reinforcement 3 | . 1 . 2 Assault . | . . . . Garrison . | . . . . Intercept . | . . . . Searches Triggered . | . . . . Construction Impeded 1 | . . . 1 Haulers Reinforced . | . . . . Active Scanning Responses . | . . . . Cargo Convoy Interrupts . | . . . . Stealth | -11 -10 -10 -8 --------- Run | Yrd Mat Sub Mat Distress Signals 4 | . . . 4 Communications Jammed . | . . . . Distress Signals . | . . . . Times Spotted 56 | . 14 6 36 Peak Tracking Total 7 | . 5 2 7 Tactical Retreats 4 | . . . 4 Traps | -11 -10 -10 -8 ------- Run | Yrd Mat Sub Mat Traps Triggered 2 | . 1 . 1 Indirectly . | . . . . Trap Hack Attempts . | . . . . Triggered . | . . . . Disarmed . | . . . . Reprogrammed . | . . . . Reused . | . . . . Traps Extracted . | . . . . Installed . | . . . . Triggered . | . . . . Machines | -11 -10 -10 -8 ---------- Run | Yrd Mat Sub Mat Machines Disabled . | . . . . Max in Single Turn . | . . . . Machines Repaired . | . . . . Machines Dismantled . | . . . . Machines Sabotaged . | . . . . Overloaded Fab Kills . | . . . . Hacking | -11 -10 -10 -8 --------- Run | Yrd Mat Sub Mat Machines Accessed 4 | . 3 . 1 Terminals 4 | . 3 . 1 Fabricators . | . . . . Repair Stations . | . . . . Recycling Units . | . . . . Scanalyzers . | . . . . Garrison Access . | . . . . Total Hacks 12 | . 9 . 3 Successful 7 | . 5 . 2 Failed 5 | . 4 . 1 Catastrophic . | . . . . Database Lockouts . | . . . . Manual 11 | . 10 . 1 Terminals 12 | . 9 . 3 Fabricators . | . . . . Repair Stations . | . . . . Recycling Units . | . . . . Scanalyzers . | . . . . Garrison Access . | . . . . Terminal Hacks 1 | . . . 1 Robot Analysis 1 | . . . 1 Fabricator Hacks . | . . . . Repair Station Hacks . | . . . . Recycling Unit Hacks . | . . . . Scanalyzer . | . . . . Garrison Access Hacks . | . . . . Unauthorized Hacks 6 | . 5 . 1 Terminals 6 | . 5 . 1 Botnet 4 | . 3 . 1 Disrupt 1 | . 1 . . Skim 1 | . 1 . . Fabricators . | . . . . Repair Stations . | . . . . Recycling Units . | . . . . Scanalyzers . | . . . . Garrison Access . | . . . . Data Cores Recovered . | . . . . Used . | . . . . Hacking Detections 2 | . 1 . 1 Full Trace Events 1 | . 1 . . Feedback Events . | . . . . Feedback Blocked . | . . . . Robot Schematics Acquired . | . . . . Robots Built . | . . . . Authchips . | . . . . Time . | . . . . Total Robot Build Rating . | . . . . Part Schematics Acquired . | . . . . Parts Built . | . . . . Authchips . | . . . . Time . | . . . . Total Part Build Rating . | . . . . Parts Repaired . | . . . . Time . | . . . . Parts Recycled . | . . . . Recycled Matter . | . . . . Retrieved Matter . | . . . . Retrieved Components . | . . . . Parts Scanalyzed . | . . . . Part Schematics Acquired . | . . . . Parts Damaged . | . . . . Bothacking | -11 -10 -10 -8 ------------ Run | Yrd Mat Sub Mat Used RIF Installer . | . . . . Robots Hacked . | . . . . Non-combat . | . . . . Combat . | . . . . Robot Hacks Applied . | . . . . Relay Couplers Released . | . . . . Fabnet Peak Effective % . | . . . . Robots Rewired . | . . . . Allies Hacked . | . . . . Hacks Repelled . | . . . . Allies | -11 -10 -10 -8 -------- Run | Yrd Mat Sub Mat Total Allies . | . . . . Largest Group . | . . . . Highest-Rated Group . | . . . . Highest-Rated Ally . | . . . . Total Orders . | . . . . Ally Attacks . | . . . . Total Damage . | . . . . Kills . | . . . . Allies Corrupted . | . . . . Allies Melted . | . . . . Intel | -11 -10 -10 -8 ------- Run | Yrd Mat Sub Mat Active Infowar (turns) 2036 | 136 753 458 689 Terrain 532 | . . . 532 Seismic 2036 | 136 753 458 689 Robot Analysis Total 1 | . . . 1 Derelict Logs Recovered 1 | . . 1 . Drone Launches . | . . . . Drone Recoveries . | . . . . Exploration | -11 -10 -10 -8 ------------- Run | Yrd Mat Sub Mat Turns Passed 2311 | 245 753 458 855 Spaces Moved 1023 | 104 378 238 303 Core 10 | 2 . . 8 Treads 980 | 102 378 238 262 Legs 15 | . . . 15 Wheels 18 | . . . 18 Hover . | . . . . Flight . | . . . . Fastest Speed 50 | 50 160 160 110 Average Speed 164 | 157 160 171 165 Slowest Speed 450 | 160 160 260 450 Overloaded Moves . | . . . . Propulsion Burnouts . | . . . . Robots Hopped . | . . . . Potential Cave-ins . | . . . . Cave-ins Triggered . | . . . . Exploration Rate (%) 26 | 6 50 23 26 Regions Visited 3 Branch Regions 1 Pre-discovered Areas . | . . . . Known Exits Taken . | . . . . Unknown Exits Taken 3 | 1 1 1 . Scrap Searched 2 | . . 2 . Spaces Dug . | . . . . Terrain Destroyed 81 | . . 45 36 Melee . | . . . . Projectile 1 | . . . 1 AOE 80 | . . 45 35 Terrain Rammed . | . . . . Walls Destroyed . | . . . . Machines Disabled . | . . . . Actions | -11 -10 -10 -8 --------- Run | Yrd Mat Sub Mat Total 1387 | 140 466 261 520 Wait 140 | . 42 1 97 Move 1020 | 103 377 237 303 Hop . | . . . . Pick Up 25 | 7 2 1 15 Fast Attach 14 | 7 . . 7 Attach 11 | . . 2 9 Detach 1 | . . . 1 Swap 10 | . 4 2 4 Drop 14 | . 4 1 9 Fire 147 | 23 35 15 74 Melee . | . . . . Ram . | . . . . Kick . | . . . . Crush 5 | . 2 2 1 Escape Stasis . | . . . . Rewire . | . . . . Trap . | . . . . Miscellaneous . | . . . . Route ------- -11/Scrapyard -10/Materials (discovered 2 exits: [*Mat] / [*Sub]) -10/Subcaves -8/Materials (discovered 1 exit: [*Fac]) History --------- Turn | Location | Event 15 | -11/Scrapyard | Discovered new exit (range 16) 246 | -11/Scrapyard | Entered Materials 304 | -10/Materials | Build established: Mutant 412 | -10/Materials | Discovered new exit (range 6) 711 | -10/Materials | Core integrity fell below 50% 732 | -10/Materials | Discovered new exit (range 12) 999 | -10/Materials | Entered Subcaves 1007 | -10/Subcaves | Learned Materials security intel 1221 | -10/Subcaves | Core integrity fell below 20% 1421 | -10/Subcaves | Discovered new exit (range 8) 1457 | -10/Subcaves | Entered Materials 1457 | -8/Materials | Evolved 4 slots: Propulsion x2, Utility x2 2160 | -8/Materials | Core integrity fell below 50% 2198 | -8/Materials | Discovered new exit (range 15) 2207 | -8/Materials | Lost 9 parts (1p2n3u3w) 2254 | -8/Materials | Core integrity fell below 20% 2312 | -8/Materials | Lost 5 parts (3n2w) 2312 | -8/Materials | Destroyed by Y-45 Defender with Beam Rifle Last Messages --------------- 02264_ U-05 Engineer lays Concrete. 02265_ K-01 Serf collects debris. 02265_ U-05 Engineer lays Concrete. 02267_ Destroyed Welding Torch. 02269_ G-47 Trooper destroyed. 02269_ K-01 Serf collects debris. 02271_ Field Laser destroyed. 02272_ Acquired 56 matter. 02272_ K-01 Serf collects debris. 02276_ Power failure, Lgt. Nuclear Core shutdown. 02279_ K-01 Serf collects debris. 02281_ Wheel destroyed. 02281_ Critical hit (Burn: +37). 02282_ Acquired Lgt. Nuclear Core. 02283_ K-01 Serf collects debris. 02286_ R-06 Scavenger collects Particle Gun. 02287_ K-01 Serf collects debris. 02288_ R-06 Scavenger collects Imp. Heat Sink. 02292_ R-06 Scavenger collects Lgt. Nuclear Core. 02296_ R-06 Scavenger collects Particle Gun. Map ----- +----------------------------------------------------+ | Y?????????????????????????????????????????? | | "?????????????????????????????????????????? | | ??????????????????????????????????????????? | | ?#????#?? ?????? ???????????????????????? | | #####??????????? ???????????????????????? | | #??????????? ???????????????????????? | | #??##??????# +??????????????????????? | | ###???? ???# #??????????????????????? | | #####?? ? ?????# #??????????????????????? | | [ #???? ????? #??????????????????????? | | #???????????# #??????????????????????? | | *##?#? ??????# +??????????????????????? | | ! #???#?????#?# #??????????????????????? | | ##?????????## * #??????????????????????? | | = #??????? ???# %=#??????????????????????? | | +####??? ??????# ! #??????????????????????? | | ##?????? ?"# #??????????????????????? | | =%[ #?# ???????# #??????????????????????? | | #?#???????##% #??????????????????????? | | ##?????????#!= #??????????????????????? | | =*#??#??######%! #??????????????????????? | | !=][#????## #! #??????????????????????? | | %=%#????# # #??????????????????????? | | ###/###### #####! ##########?????????????? | | ![][%] =%%%Y #?????????????? | | !%]]% *= @< #?????????????? | | !!!]!% % #?????????????? | | ######"#######[ ###########?????????????? | | ??#??###?# ##???????????????????????? | | ?????#??#### # ##????????????????????????? | | ???????????######?????????????????????????? | | ??????????????????????????????????????????? | | | | | | | | | | | | | | | | | | | | | | | | | | | | | | | | | | | | | +----------------------------------------------------+ Best States ------------- Heat Dissipation 31 Energy Generation 14 Energy Capacity 265 Matter Stores 300 Matter Capacity 300 Sight Range 16 Terrain Scan Range 16 Terrain Scan Density 10 Armor Coverage 150 Evasion (%) 40 Targeting Accuracy 6 Recoil Reduction 2 Item Schematics ----------------- None Robot Schematics ------------------ None Fabricated ------------ Nothing Repaired ---------- Nothing Alien Tech Used ----------------- None Achievements -------------- Quantum Hacking root@ Challenges ------------ None Game ------ Seed IntegrityImpactConstruct Manual? 0 Play Time 00:14:53 Cumulative 109.5 hours Start 2025.05.22 @ 18:06:31 End 2025.05.22 @ 18:19:01 Sessions 1 Manual Loads 0 Difficulty Rogue Special Mode None Game No. 284 Rogue 284 Adventurer 0 Explorer 0 Win Type - Total 2 Types 2/0/0/0/0/0/0/0/0/0 Lore% 53 Gallery% 50 Achievement% 44 Wizard Run 0 Options --------- Layout 0 ASCII 0 Keyboard 0 Movement Numpad Keybinds 0 Fullscreen 2 Font 18/Terminus Map View 76x50 Zoom Use 0% Tactical HUD 1 Map Filters NONE Filters NONE Steam 1 RUN: a7ad263b-e423-4420-9d09-77f77879cdf0